Cogmind - Beta 10.2 @@@ ROGUE MODE // 2022.01.15 @ 01:38:59 Player: Crorem Result: Destroyed by G-47 Trooper with Particle Gun Performance ------------- Evolutions (3) 1500 Regions Visited (4) 800 Robots Destroyed (30) 150 Value Destroyed (1224) 1224 Prototype IDs (1) 20 Alien Tech Used (0) 0 Bonus (11) 11 TOTAL SCORE: 3705 Bonus ------- High Alert Combat Kills 11 Cogmind --------- Core Integrity 0/700 Matter 117/300 Energy 100/100 System Corruption 2% Temperature Cool (9) Movement Core (300) Ox5 Location -7/Factory Parts ------- > --- POWER (2) -------- (None) > --- PROPULSION (4) --- (None) > --- UTILITY (4) ------ Large Storage Unit Improved Signal Interpreter Advanced Targeting Computer > --- WEAPON (3) ------- (None) > --- INVENTORY (10) --- Target Analyzer Peak State ------------ > --- POWER ------------ Ion Engine > --- PROPULSION ------- Improved Aluminum Leg Improved Aluminum Leg > --- UTILITY ---------- Improved Heat Sink Small Storage Unit Targeting Computer > --- WEAPON ----------- Pulse Rifle Pulse Rifle Light EM Pulse Cannon > --- INVENTORY -------- Ion Engine Light EM Pulse Cannon Light EM Pulse Cannon Light EM Pulse Cannon Improved Grenade Launcher Improved Grenade Launcher [Rating: 19] Favorites ----------- Power Ion Engine Engine Ion Engine Propulsion Light Treads Treads Light Treads Leg Improved Aluminum Leg Utility Small Storage Unit Device Improved Heat Sink Storage Small Storage Unit Processor Targeting Computer Weapon Light EM Pulse Cannon Energy Gun Small Laser Energy Cannon Light EM Pulse Cannon Ballistic Gun Improved Assault Rifle Launcher Improved Grenade Launcher Build | -11 -10 -9 -8 -7 ------- Run | Scr Mat Mat Mat Fac Slots Evolved 6 | . . 2 2 2 Power 1 | . . . . 1 Propulsion 2 | . . . 1 1 Utility 2 | . . 1 1 . Weapon 1 | . . 1 . . Parts Attached 33 | 6 3 11 6 7 Power 3 | 1 1 . 1 . Engine 3 | 1 1 . 1 . Core . | . . . . . Reactor . | . . . . . Propulsion 7 | 2 . 3 . 2 Treads 3 | 2 . 1 . . Leg 4 | . . 2 . 2 Wheel . | . . . . . Hover . | . . . . . Flight . | . . . . . Utility 6 | 1 1 2 . 2 Device 1 | . . 1 . . Storage 2 | 1 . 1 . . Processor 3 | . 1 . . 2 Hackware . | . . . . . Protection . | . . . . . Artifact . | . . . . . Weapon 17 | 2 1 6 5 3 Energy Gun 6 | 1 1 2 1 1 Energy Cannon 4 | . . 2 1 1 Ballistic Gun 4 | 1 . 1 1 1 Ballistic Cannon . | . . . . . Launcher 3 | . . 1 2 . Special Weapon . | . . . . . Impact Weapon . | . . . . . Slashing Weapon . | . . . . . Piercing Weapon . | . . . . . Special Melee Weapon . | . . . . . Unidentified Prototypes 1 | . . 1 . . Parts Lost 20 | . 2 1 11 6 Power 2 | . . . 2 . Propulsion 5 | . 1 . 2 2 Utility 2 | . . . 1 1 Weapon 11 | . 1 1 6 3 Highest Loss Streak 7 | . 1 1 7 5 Average Slot Usage (%) 61 | . 97 92 56 38 Engine 5 | . 14 11 4 . Treads 6 | . 27 7 . . Leg 5 | . . 10 10 3 Device 2 | . . 8 5 . Storage 15 | . 14 14 18 15 Processor 6 | . 12 7 . 5 Energy Gun 5 | . 14 12 4 . Energy Cannon 5 | . . 11 5 6 Ballistic Gun 7 | . 14 6 4 6 Naked Turns . | . . . . . Heaviest Build 39 | 12 12 36 39 27 Greatest Support 40 | 40 40 40 26 20 Greatest Overweight (x) 9 | . . 1 9 8 Average Overweight (x) 2 | . . . 2 4 Largest Inventory Capacity 12 | 6 6 12 12 12 Average Capacity 10 | 5 6 7 12 11 Most Carried 6 | 2 2 6 6 2 Average Carried 1 | 1 1 5 3 . Final Capacity 12 | 6 6 12 12 10 Final Carried 6 | 2 1 6 2 1 Class Distribution -------------------- 77% | Mutant 22% | Gunner Dominant Class ---------------- Mutant | -10/Materials Gunner | -9/Materials Gunner | -8/Materials Mutant | -7/Factory Resources | -11 -10 -9 -8 -7 ----------- Run | Scr Mat Mat Mat Fac Matter Collected 685 | 260 146 117 60 102 Remotely . | . . . . . Salvage Created 943 | . 233 122 430 158 Parts 42 | . 12 7 14 9 Haulers Intercepted . | . . . . . Recyclers Shooed . | . . . . . Parts Field Recycled . | . . . . . Retrieved Matter . | . . . . . Parts Self-Destructed . | . . . . . Prevented . | . . . . . Kills | -11 -10 -9 -8 -7 ------- Run | Scr Mat Mat Mat Fac Combat Hostiles Destroyed 25 | . 7 2 12 4 Guns 9 | . 7 1 . 1 Cannons 6 | . . 1 2 3 AOE 9 | . . . 9 . Classes Destroyed 9 | . 2 2 4 1 Builder 1 | . . . 1 . Recycler 1 | . . . 1 . Operator 1 | . . . 1 . Watcher 2 | . . 2 . . Swarmer 5 | . 3 . . 2 Grunt 16 | . 4 . 11 1 Sentry 2 | . . 2 . . Hunter 1 | . . . 1 . Programmer 1 | . . . . 1 Best Kill Streak 6 | . 3 1 6 2 Combat Bots Only 5 | . 3 1 5 2 Max Kills in Single Turn 3 | . 2 1 3 1 Gunslinging 1 | . 1 . . . Exploded 2 | . . . 2 . Melee . | . . . . . Uniques/NPCs Destroyed . | . . . . . Combat | -11 -10 -9 -8 -7 -------- Run | Scr Mat Mat Mat Fac Damage Taken 3379 | . 394 197 1341 1447 Core 1187 | . 47 . 435 705 Absorbed by Shields . | . . . . . Core Remaining (%) 75 | 100 81 100 20 . Volleys Fired 110 | . 52 18 20 20 Largest 3 | . 2 3 3 2 Hottest 182 | . 60 182 155 79 Shots Fired 212 | . 93 45 47 27 Gun 153 | . 93 25 19 16 Cannon 42 | . . 17 14 11 Launcher 17 | . . 3 14 . Special . | . . . . . Kinetic 77 | . 42 10 12 13 Thermal 73 | . 51 15 7 . Explosive 17 | . . 3 14 . Electromagnetic 45 | . . 17 14 14 Robot Hit Streak 11 | . 10 8 7 11 Robot Miss Streak 2 | . 2 2 2 2 Penetration Max . | . . . . . Secondary Targets 1 | . 1 . . . Max Gunslinging Chain 1 | . 1 . . . Shots Hit Robots 107 | . 38 30 23 16 Core Hits 58 | . 13 6 29 10 Critical Hits 1 | . . . 1 . Critical Kills . | . . . . . Critical Parts Destroyed 1 | . . . 1 . Melee Attacks . | . . . . . Impact . | . . . . . Slashing . | . . . . . Piercing . | . . . . . Sneak Attacks . | . . . . . Combat Hostiles . | . . . . . Follow-up Attacks . | . . . . . Damage Inflicted 2977 | . 424 535 1685 333 Guns 1000 | . 424 222 157 197 Cannons 662 | . . 240 289 133 Explosions 1312 | . . 73 1239 . Melee . | . . . . . Ramming 3 | . . . . 3 Kinetic 548 | . 214 60 106 168 Thermal 448 | . 210 187 51 . Explosive 1287 | . . 48 1239 . Electromagnetic 691 | . . 240 289 162 Impact . | . . . . . Slashing . | . . . . . Piercing . | . . . . . Highest Corruption 2 | . 2 . . 2 Average Corruption 1 | . 2 . . 1 Corruption Purged . | . . . . . Effects 3 | . . . . 3 Message Errors 2 | . . . . 2 Data Loss (minor) 1 | . . . . 1 Overload Shots . | . . . . . Overflow Damage 114 | . 27 10 60 17 Projectiles 27 | . . 10 . 17 Explosions 87 | . 27 . 60 . Melee . | . . . . . Knockbacks . | . . . . . Impact . | . . . . . Kinetic . | . . . . . Secondary . | . . . . . Self-Inflicted Damage 200 | . 71 31 98 . Shots 5 | . 1 1 3 . Rammed 4 | . . . . 4 Targets Rammed 4 | . . . . 4 Kicked . | . . . . . Crushed . | . . . . . Highest Temperature 132 | . 93 132 110 1 Average Temperature 41 | . 37 46 42 1 Received Heat Transfer 1161 | . 162 63 477 459 Siege Activations . | . . . . . Robots Corrupted 1 | . . . 1 . Combat Hostiles 1 | . . . 1 . Parts Fried . | . . . . . Impact Corruptions . | . . . . . Robots Melted . | . . . . . Combat Hostiles . | . . . . . Parts Melted . | . . . . . Heat Transferred 944 | . 475 358 111 . Parts Sabotaged . | . . . . . Parts Stolen . | . . . . . Parts Stripped . | . . . . . Power Chain Reactions 1 | . . 1 . . Missiles Intercepted . | . . . . . Alert | -11 -10 -9 -8 -7 ------- Run | Scr Mat Mat Mat Fac Peak Influence 501 | . 205 129 501 205 Initial 205 | . . 3 . 205 Average 109 | . 81 80 290 89 Maximum Alert Level 2 | . 1 . 2 1 Low Security (%) 84 | 100 92 100 31 89 Level 1 9 | . 7 . 22 10 Level 2 5 | . . . 45 . Level 3 . | . . . . . Level 4 . | . . . . . Level 5 . | . . . . . High Security . | . . . . . Max Security . | . . . . . Squads Dispatched 8 | . . 1 4 3 Investigation 3 | . . 1 1 1 Extermination 1 | . . . . 1 Reinforcement 4 | . . . 3 1 Assault . | . . . . . Garrison . | . . . . . Intercept . | . . . . . Construction Impeded 1 | . . . 1 . Haulers Reinforced . | . . . . . Stealth | -11 -10 -9 -8 -7 --------- Run | Scr Mat Mat Mat Fac Distress Signals 3 | . 2 . . 1 Communications Jammed . | . . . . . Distress Signals . | . . . . . Times Spotted 51 | . 13 8 19 11 Peak Tracking Total 5 | . 5 2 5 4 Tactical Retreats 3 | . . 1 . 2 Traps | -11 -10 -9 -8 -7 ------- Run | Scr Mat Mat Mat Fac Traps Triggered 1 | . 1 . . . Indirectly . | . . . . . Trap Hack Attempts . | . . . . . Triggered . | . . . . . Disarmed . | . . . . . Reprogrammed . | . . . . . Reused . | . . . . . Traps Extracted . | . . . . . Installed . | . . . . . Triggered . | . . . . . Machines | -11 -10 -9 -8 -7 ---------- Run | Scr Mat Mat Mat Fac Machines Disabled 15 | . 2 . 5 8 Max in Single Turn 7 | . 1 . 4 7 Machines Sabotaged . | . . . . . Garrisons Compromised . | . . . . . Overloaded Fab Kills . | . . . . . Fab Network Shutdowns . | . . . . . Hacking | -11 -10 -9 -8 -7 --------- Run | Scr Mat Mat Mat Fac Machines Accessed 10 | . 4 1 1 4 Terminals 9 | . 3 1 1 4 Fabricators . | . . . . . Repair Stations . | . . . . . Recycling Units 1 | . 1 . . . Scanalyzers . | . . . . . Garrison Access . | . . . . . Total Hacks 26 | . 7 3 6 10 Successful 8 | . 3 1 1 3 Failed 18 | . 4 2 5 7 Catastrophic 3 | . 1 1 . 1 Database Lockouts . | . . . . . Manual 7 | . 3 . . 4 Terminals 25 | . 6 3 6 10 Fabricators . | . . . . . Repair Stations . | . . . . . Recycling Units 1 | . 1 . . . Scanalyzers . | . . . . . Garrison Access . | . . . . . Terminal Hacks 5 | . 1 1 1 2 Record 2 | . . 1 1 . Unreport Threat 1 | . . . . 1 Zone Layout 2 | . 1 . . 1 Fabricator Hacks . | . . . . . Repair Station Hacks . | . . . . . Recycling Unit Hacks 1 | . 1 . . . Report Inventory 1 | . 1 . . . Scanalyzer . | . . . . . Garrison Access Hacks . | . . . . . Unauthorized Hacks 2 | . 1 . . 1 Terminals 2 | . 1 . . 1 Botnet 2 | . 1 . . 1 Fabricators . | . . . . . Repair Stations . | . . . . . Recycling Units . | . . . . . Scanalyzers . | . . . . . Garrison Access . | . . . . . Data Cores Recovered . | . . . . . Used . | . . . . . Hacking Detections 9 | . 3 1 1 4 Full Trace Events 4 | . 1 1 1 1 Feedback Events . | . . . . . Feedback Blocked . | . . . . . Robot Schematics Acquired . | . . . . . Robots Built . | . . . . . Matter . | . . . . . Time . | . . . . . Total Robot Build Rating . | . . . . . Part Schematics Acquired . | . . . . . Parts Built . | . . . . . Matter . | . . . . . Time . | . . . . . Total Part Build Rating . | . . . . . Parts Repaired . | . . . . . Time . | . . . . . Parts Recycled . | . . . . . Recycled Matter . | . . . . . Retrieved Matter . | . . . . . Retrieved Components . | . . . . . Parts Scanalyzed . | . . . . . Part Schematics Acquired . | . . . . . Parts Damaged . | . . . . . Bothacking | -11 -10 -9 -8 -7 ------------ Run | Scr Mat Mat Mat Fac Used RIF Installer . | . . . . . Robots Hacked . | . . . . . Non-combat . | . . . . . Combat . | . . . . . Robot Hacks Applied . | . . . . . Relay Couplers Released . | . . . . . Robots Rewired . | . . . . . Allies Hacked . | . . . . . Hacks Repelled . | . . . . . Allies | -11 -10 -9 -8 -7 -------- Run | Scr Mat Mat Mat Fac Total Allies . | . . . . . Largest Group . | . . . . . Highest-Rated Group . | . . . . . Highest-Rated Ally . | . . . . . Total Orders . | . . . . . Ally Attacks . | . . . . . Total Damage . | . . . . . Kills . | . . . . . Allies Corrupted . | . . . . . Allies Melted . | . . . . . Intel | -11 -10 -9 -8 -7 ------- Run | Scr Mat Mat Mat Fac Robot Analysis Total . | . . . . . Derelict Logs Recovered . | . . . . . Drone Launches . | . . . . . Drone Recoveries . | . . . . . Exploration | -11 -10 -9 -8 -7 ------------- Run | Scr Mat Mat Mat Fac Turns Passed 2424 | 72 436 404 306 1206 Spaces Moved 892 | 43 156 202 118 373 Core 230 | 6 . . 29 195 Treads 288 | 37 156 95 . . Legs 374 | . . 107 89 178 Wheels . | . . . . . Hover . | . . . . . Flight . | . . . . . Fastest Speed 50 | 50 160 120 150 150 Average Speed 221 | 144 160 149 207 299 Slowest Speed 500 | 160 160 180 500 450 Overloaded Moves . | . . . . . Propulsion Burnouts . | . . . . . Robots Hopped . | . . . . . Cave-ins Triggered . | . . . . . Exploration Rate (%) 16 | 5 24 27 17 10 Regions Visited 4 Branch Regions . Pre-discovered Areas . | . . . . . Known Exits Taken . | . . . . . Unknown Exits Taken 4 | 1 1 1 1 . Scrap Searched . | . . . . . Spaces Dug . | . . . . . Terrain Destroyed 188 | . 29 33 109 17 Melee . | . . . . . Projectile . | . . . . . AOE 188 | . 29 33 109 17 Terrain Rammed . | . . . . . Walls Destroyed . | . . . . . Machines Disabled . | . . . . . Actions | -11 -10 -9 -8 -7 --------- Run | Scr Mat Mat Mat Fac Total 1132 | 50 249 266 144 423 Wait 79 | . 39 23 . 17 Move 888 | 42 155 201 117 373 Hop . | . . . . . Pick Up 11 | 2 . 7 . 2 Fast Attach 18 | 6 1 7 . 4 Attach 11 | . 1 2 5 3 Detach 2 | . . 1 1 . Swap 4 | . 1 2 1 . Drop 5 | . . 5 . . Fire 110 | . 52 18 20 20 Melee . | . . . . . Ram 4 | . . . . 4 Kick . | . . . . . Crush . | . . . . . Escape Stasis . | . . . . . Rewire . | . . . . . Trap . | . . . . . Miscellaneous . | . . . . . Route ------- -11/Scrapyard -10/Materials -9/Materials -8/Materials -7/Factory History --------- Turn | Location | Event 6 | -11/Scrapyard | Discovered new exit (range 15) 73 | -11/Scrapyard | Entered Materials 234 | -10/Materials | Discovered new exit (range 15) 302 | -10/Materials | Build established: Mutant 509 | -10/Materials | Entered another Materials area 509 | -9/Materials | Evolved 2 slots: Utility x1, Weapon x1 874 | -9/Materials | Discovered new exit (range 3) 913 | -9/Materials | Entered another Materials area 913 | -8/Materials | Evolved 2 slots: Propulsion x1, Utility x1 958 | -8/Materials | Build established: Gunner 1003 | -8/Materials | Lost 3 parts (1p2w) 1163 | -8/Materials | Core integrity fell below 50% 1168 | -8/Materials | Lost 7 parts (1p2n1u3w) 1177 | -8/Materials | Discovered new exit (range 13) 1219 | -8/Materials | Entered Factory 1219 | -7/Factory | Evolved 2 slots: Power x1, Propulsion x1 1369 | -7/Factory | Build established: Mutant 2371 | -7/Factory | Lost 5 parts (2n3w) 2372 | -7/Factory | Core integrity fell below 50% 2408 | -7/Factory | Core integrity fell below 20% 2425 | -7/Factory | Destroyed by G-47 Trooper with Particle Gun Last Messages --------------- K-01 Serf collects debris. S-27 Virus IFF system glitched. K-01 Serf collects debris. K-01 Serf destroyed. K-01 Serf collects debris. J#5B93&E8VCJR/RG%U,EYQAO%FACE7V|7WEO K-01 Serf collects debris. S-27 Virus misfires. Slammed into G-47 Trooper. S-27 Virus misfires. Slammed into G-47 Trooper. Destabilizing: System corrupted (+1). S-27 Virus IFF system glitched. Slammed into G-47 Trooper. Destabilizing: Core damaged (-35). System corrupted: Component data lost. S-27 Virus IFF system glitched. G-47 Trooper destroyed. Sml. Storage Unit destroyed. [Achievement: First Step to Greatness] Map ----- +----------------------------------------------------+ | ????????????????????????????? # """ """ | | ?????????????????????????????""" """ # """ """ | | ???????????????????????????? """ """ / =""" """ | | ?????????????????????????# """ """ # [ | | ?????????????????????????# # | | ?????????????????????????# """ """ # | | ?????????????????????????# """ """ ########+#+ | | ?????????????????????????# """ """ #?????? | | ?????????????????????????# #?????? "" | | ?????????????????????????# #????? "" | | ?????????????????????????# #????? "" | | ?????????????????????????##########+###???? "" | | ??????????????????????????????????# #???? # | | ??????????????????????????????????# #??"""# "? | | ???????????????????????????######## # """# "? | | ?????????????????????"" + """# "? | | ?????????????????????"" ###### # # ?? | | ??????????????????????????????????# #??[ # ?? | | ??????????????????????????????????# #????## ?? | | ??????????????????????????????????# ############# | | ?????????????????????????????????## ## | | ?????????????????????????????????# + | | ?????????????????????????????????# # | | ?????????????????????????????????# # | | ?????????????????????############# # | | ?????????????????????#= @ !## ####+####### | | ?????????????????????#%sg # #??? | | ?????????????????????#* """ """ # #??? | | ?????????????????????# """ """ # #??? | | ?????????????????????#! """ """ # #??? | | ?????????????????????# # #??? | | ????????????? ??????######+##### ^ ###+##+#### | | ???????????? ??????# ##^ # # | | ???????????? ##### # # | | ???????????? " ^ ^ # # | | ????????????? T "T # # | | ???????????# = # # | | ???????????# ##### % # # | | ?????????????? ?????# =%* ######## # | | ?????????????? ???????### = ###??????# # | | ?????????????????????????# %%#????????########### | | ???????????????????????? /!% #??????????????????? | | ??????????????????????"" # #??????????????????? | | ?????????????????????""" # #??????????????????? | | ?????????????????????"""?# ??????????????????? | | ?????????????????????""??# ??????????????????? | | ?????????????????????"???# ?????????????????? | | ?????????????????????????######?????????????????? | | ????????????????????????????????????????????????? | | ????????????????????????????????????????????????? | +----------------------------------------------------+ Best States ------------- Heat Dissipation 45 Energy Generation 10 Energy Capacity 250 Matter Stores 300 Matter Capacity 300 Sight Range 16 Terrain Scan Density 10 Evasion (%) 40 Targeting Accuracy 8 Recoil Reduction 2 Item Schematics ----------------- None Robot Schematics ------------------ None Fabricated ------------ Nothing Alien Tech Used ----------------- None Achievements -------------- First Step to Greatness Challenges ------------ None Game ------ Seed MagneticDynamicRouter Manual? 0 Play Time 00:25:38 Cumulative 9.4 hours Start 2022.01.15 @ 01:09:57 End 2022.01.15 @ 01:38:59 Sessions 1 Manual Loads 0 Difficulty Rogue Special Mode None Game No. 8 Rogue 2 Adventurer 0 Explorer 6 Win Type - Total 3 Types 2/0/1/0/0/0/0/0/0 Lore% 24 Gallery% 23 Achievement% 28 Wizard Run 0 Options --------- ASCII 0 Keyboard 0 Movement Numpad Keybinds 0 Fullscreen 1 Font 18/SmallcapsGlow Map View 76x50 Tactical HUD 0 Map Filters NONE Filters NONE Steam 1 RUN: 86751006-0e5f-484c-8068-5c196b505ece